bitfinex/quotes_SOLUSD_20260109
["timestamp","ask_amount","ask_price","bid_price","bid_amount"]
[1768002125584,0.68350819,136.11,136.07,18.43242104]
[1768002125585,0.68350819,136.08,135.99,8.25163961]
[1768002125781,0.68350819,136.08,135.96,0.1]
[1768002125782,3.59104967,136.0,135.96,0.1]
[1768002125967,3.59104967,135.98,135.96,0.1]
[1768002126278,3.59104967,135.99,135.96,0.1]
[1768002126665,4.93554582,135.98,135.96,0.1]
[1768002126869,9.78457115,136.02,135.96,0.67696608]
[1768002127076,4.93593817,136.01,135.97,0.67453837]
[1768002127289,4.93593817,136.0,135.97,0.67453837]
[1768002127672,8.52698784,136.0,135.97,0.67453837]
[1768002127876,3.59104967,136.0,135.97,0.67453837]
[1768002128873,4.27455786,136.0,135.97,0.67453837]
[1768002130285,4.27455786,136.04,135.99,0.67453837]
[1768002130792,0.68350819,136.04,135.99,0.67453837]
[1768002131492,4.27455786,136.05,136.0,0.67453837]
[1768002131674,0.68350819,136.05,136.0,0.67453837]
[1768002132296,4.27455786,136.05,136.0,0.67453837]
[1768002133590,0.68350819,136.04,136.0,0.67453837]
[1768002133796,11.58350819,136.04,136.0,0.67453837]
[1768002134179,10.9,136.04,136.02,0.67453837]
[1768002134495,0.68350819,136.06,136.02,0.67453837]
[1768002135285,0.68350819,136.06,136.02,8.02593054]
[1768002135495,0.68350819,136.06,136.03,0.67453837]
[1768002137186,0.68350819,136.06,136.03,8.02578749]
[1768002137697,0.68350819,136.06,136.03,7.35124912]
[1768002141694,0.68350819,136.05,136.03,7.35124912]
[1768002144707,3.59104967,136.06,136.03,7.35124912]
[1768002144708,4.27455786,136.06,136.03,7.35124912]
[1768002146905,0.68350819,136.06,136.03,7.35124912]
[1768002148211,0.68350819,136.06,136.01,13.42]
[1768002148212,0.68350819,136.04,136.01,14.09453837]
[1768002148510,0.68350819,136.04,136.01,21.44658772]
[1768002148709,0.68350819,136.03,136.01,7.35236389]
[1768002148907,0.68350819,136.05,136.02,0.67453837]
[1768002149910,0.68350819,136.05,136.02,8.0263756]
[1768002152211,0.68350819,136.04,136.0,0.67453837]
[1768002153913,0.68350819,136.04,136.01,7.35236426]
[1768002155913,0.66800224,136.03,136.0,7.3527941]
[1768002156412,0.66800224,136.03,135.99,20.77317593]
[1768002156995,0.66800224,136.03,135.99,21.4698473]
[1768002157407,0.66800224,136.03,135.99,8.0498473]
[1768002158916,0.66800224,136.03,135.98,7.35380161]
[1768002158917,0.66800224,136.02,135.98,7.35380161]
[1768002159222,0.66800224,136.02,135.98,8.05047298]
[1768002159519,0.66800224,136.02,135.96,0.00242771]
[1768002159520,0.66800224,135.98,135.96,0.00242771]
[1768002161422,0.66800224,136.01,135.96,0.00242771]
[1768002161725,0.66800224,136.0,135.96,0.69909908]
[1768002161901,0.66800224,135.98,135.96,0.00242771]
[1768002167926,0.66800224,135.97,135.96,0.00242771]
[1768002176324,5.63949682,135.98,135.96,0.00242771]
[1768002177431,0.71533162,135.98,135.96,0.00242771]
[1768002179526,0.71533162,135.97,135.96,0.00242771]
[1768002182131,2.30392972,135.97,135.93,7.35645938]
[1768002182828,0.71533162,135.96,135.93,7.35645938]
[1768002185229,0.71533162,135.96,135.93,8.04694821]
[1768002185430,0.67344801,135.98,135.94,0.69048883]
[1768002185633,5.59568457,135.98,135.94,0.69048883]
[1768002185833,0.67344801,135.97,135.94,0.69048883]
[1768002186530,5.59587721,135.97,135.94,0.69048883]
[1768002187368,0.67344801,135.97,135.94,0.69048883]
[1768002187729,5.59627134,135.97,135.94,0.69048883]
[1768002188856,0.67344801,135.99,135.95,0.69048883]
[1768002189231,5.59752724,135.99,135.95,0.69048883]
[1768002189926,5.59752724,135.99,135.95,8.04569835]
[1768002191653,0.67344801,135.98,135.95,8.04569835]
[1768002193630,5.60248205,135.98,135.95,8.04569835]
[1768002197252,0.67344801,135.98,135.95,8.04569835]
[1768002198231,4.93894752,135.97,135.95,8.04569835]
[1768002199246,0.67344801,135.98,135.95,8.04569835]
[1768002199446,4.94070748,135.97,135.95,8.04569835]
[1768002199651,0.67344801,135.98,135.95,8.04569835]
[1768002199847,4.94071487,135.97,135.95,8.04569835]
[1768002200050,0.67344801,135.98,135.95,8.04569835]
[1768002200345,4.94093683,135.97,135.95,8.04569835]
[1768002200550,0.67344801,135.98,135.95,8.04569835]
[1768002200764,4.9433476,135.97,135.95,8.04569835]
[1768002200927,0.67344801,135.98,135.95,8.04569835]
[1768002201130,4.94335321,135.97,135.95,8.04569835]
[1768002201328,0.67344801,135.98,135.95,8.04569835]
[1768002201553,4.94576826,135.97,135.95,8.04569835]
[1768002201760,0.67344801,135.98,135.95,8.04569835]
[1768002202057,4.94576826,135.97,135.95,8.04569835]
[1768002202258,0.67344801,135.98,135.95,8.04569835]
[1768002202450,4.94827453,135.97,135.95,8.04569835]
[1768002202651,2.97737773,135.98,135.95,8.04569835]
[1768002202849,4.94806564,135.97,135.95,8.04569835]
[1768002203052,2.97737773,135.98,135.95,8.04569835]
[1768002203374,4.94831981,135.97,135.95,8.04569835]
[1768002203553,4.94831981,135.96,135.95,8.04569835]
[1768002205757,4.94831981,135.96,135.95,0.69048883]
[1768002209138,0.67344801,135.95,135.92,8.04742093]
[1768002209344,4.94831981,135.94,135.92,21.48742093]
[1768002209547,0.67344801,135.95,135.92,21.48742093]
[1768002209750,4.95511097,135.94,135.92,21.48742093]
[1768002209950,0.67344801,135.95,135.92,21.48742093]
[1768002210265,4.95511097,135.94,135.92,21.48742093]
[1768002210466,0.67344801,135.95,135.92,21.48742093]
[1768002211466,4.95458015,135.94,135.92,21.48742093]
[1768002211666,0.67344801,135.95,135.92,21.48742093]
[1768002211867,4.95457485,135.94,135.92,21.48742093]
[1768002212049,0.67344801,135.95,135.92,21.48742093]
[1768002212393,4.95409121,135.94,135.92,21.48742093]
[1768002212545,0.67344801,135.95,135.92,21.48742093]
[1768002212744,4.95408609,135.94,135.92,21.48742093]
[1768002213067,0.67344801,135.95,135.92,21.48742093]
[1768002213263,4.95366431,135.94,135.92,21.48742093]
[1768002213463,0.67344801,135.95,135.92,21.48742093]
[1768002213655,4.9536585,135.94,135.92,21.48742093]
[1768002213854,0.67344801,135.95,135.92,21.48742093]
[1768002214061,4.9536585,135.94,135.92,21.48742093]
[1768002214261,0.67344801,135.95,135.92,21.48742093]
[1768002214463,4.95332344,135.94,135.92,21.48742093]
[1768002214760,0.67344801,135.95,135.92,21.48742093]
[1768002214955,4.9533222,135.94,135.92,21.48742093]
[1768002215160,0.67344801,135.95,135.92,21.48742093]
[1768002215363,4.95272213,135.94,135.92,21.48742093]
[1768002215562,0.67344801,135.95,135.92,21.48742093]
[1768002215766,4.95269856,135.94,135.92,21.48742093]
[1768002215949,2.97297803,135.96,135.93,0.69532692]
[1768002216265,4.95270033,135.95,135.93,0.69532692]
[1768002216564,4.95270033,135.94,135.93,0.69532692]
[1768002218566,4.95270033,135.94,135.92,0.69532692]
[1768002218763,0.66904831,135.95,135.92,0.69532692]
[1768002218940,4.95150302,135.94,135.92,0.69532692]
[1768002219146,0.66904831,135.95,135.92,0.69532692]
[1768002219363,4.95119231,135.94,135.92,0.69532692]
[1768002219665,0.66904831,135.95,135.92,0.69532692]
[1768002219968,4.95017715,135.94,135.92,0.69532692]
[1768002220157,0.66904831,135.95,135.92,0.69532692]
[1768002220361,4.94991783,135.94,135.92,0.69532692]
[1768002220565,0.66904831,135.95,135.92,0.69532692]
[1768002221473,4.94893003,135.94,135.92,0.69532692]
[1768002221650,0.66904831,135.95,135.92,0.69532692]
[1768002222379,24.53763376,135.98,135.93,0.69532692]
[1768002222380,0.66904831,135.98,135.93,0.69532692]
[1768002222572,4.94883483,135.97,135.93,0.69532692]
[1768002222870,4.94883483,135.96,135.93,0.69532692]
[1768002223068,0.66904831,135.97,135.93,0.69532692]
[1768002223268,4.94891563,135.96,135.94,0.69532692]
[1768002223574,0.66904831,135.97,135.94,0.69532692]
[1768002223759,4.94894231,135.96,135.94,0.69532692]
[1768002223958,0.66904831,135.97,135.94,0.69532692]
[1768002224172,4.94894231,135.96,135.94,0.69532692]
[1768002224373,0.66904831,135.97,135.94,0.69532692]
[1768002224553,4.94908058,135.96,135.94,8.05123868]
[1768002224752,0.66904831,135.97,135.94,8.05123868]
[1768002224960,4.94908712,135.96,135.95,0.69532692]
[1768002225159,4.94908712,135.96,135.95,0.63532698]
[1768002225671,7.02936559,136.0,135.95,0.63532698]
[1768002225672,0.66904831,135.99,135.95,0.63532698]
[1768002225864,0.66904831,135.98,135.95,0.63532698]
[1768002226575,0.66904831,135.98,135.94,39.18637814]
[1768002227171,0.66904831,135.98,135.94,39.88170506]
[1768002227758,2.30392972,135.99,135.94,39.88170506]
[1768002227759,3.03900762,136.0,135.95,0.69532692]
[1768002227958,2.30392972,136.0,135.95,0.69532692]
[1768002228782,2.30392972,136.0,135.96,7.35510444]
[1768002229862,0.68993476,135.99,135.96,7.35510444]
[1768002232575,0.68993476,135.99,135.96,0.71822966]
[1768002232874,0.68993476,135.99,135.95,7.35564545]
[1768002233079,0.68993476,135.99,135.95,8.07387511]
[1768002234989,6.29428769,136.03,135.95,7.35564545]
[1768002235159,0.68993476,136.06,136.03,0.28432314]
[1768002235359,0.68993476,136.06,136.04,13.44]
[1768002236262,0.68993476,136.06,136.01,3.59894733]
[1768002236469,0.68993476,136.06,136.03,13.44]
[1768002237071,0.68993476,136.06,136.04,7.35077918]
[1768002237265,3.59894733,136.08,136.04,7.35077918]
[1768002237266,0.68993476,136.07,136.04,7.35077918]
[1768002241085,3.59894733,136.07,136.03,7.35131956]
[1768002241386,0.68993476,136.05,136.02,7.35169827]
[1768002241565,0.68993476,136.04,136.01,7.35221678]
[1768002241763,0.68993476,136.04,136.01,20.77221678]
[1768002253669,0.68993476,136.04,136.01,7.35221678]
[1768002253992,0.68993476,136.04,136.01,20.77221678]
[1768002261385,0.68993476,136.04,136.01,39.15321817]
[1768002272702,3.88327047,136.07,136.01,43.4287457]
[1768002274805,0.69685902,136.06,136.01,43.4287457]
[1768002275623,0.69685902,136.06,136.03,7.35131956]
[1768002277922,0.69685902,136.06,136.02,7.35186002]
[1768002282913,0.69685902,136.06,136.02,8.03342753]
[1768002286021,0.69685902,136.06,136.02,7.35186002]
[1768002291736,0.68106878,136.02,135.97,1.40210364]
[1768002291928,3.59894733,136.03,135.99,7.35321196]
[1768002291929,0.68106878,136.01,135.99,7.35321196]
[1768002292137,0.65106879,136.01,135.99,7.35321196]
[1768002295219,0.65106879,136.01,135.98,7.35402265]
[1768002296035,1.55106879,136.01,135.98,7.35402265]
[1768002296926,0.68106878,136.0,135.98,7.35402265]
[1768002299223,0.65106879,136.0,135.98,7.35402265]
[1768002300343,0.9,136.01,135.99,0.66664729]
[1768002300519,2.30229051,136.04,135.99,0.66664729]
[1768002301022,2.30229051,136.04,135.98,28.70801707]
[1768002301220,0.68106878,136.03,135.98,28.70801707]
[1768002301526,0.68106878,136.05,136.02,2.30229051]
[1768002301827,0.68106878,136.05,136.02,2.9689378]
[1768002303455,0.68106878,136.05,136.02,10.32054335]
[1768002304852,0.68106878,136.05,136.02,7.35160555]
[1768002305653,0.68106878,136.05,136.02,8.02647584]
[1768002313441,0.6591031,136.08,136.03,0.67487029]
[1768002313644,0.6591031,136.08,136.05,0.67487029]
[1768002313829,0.6591031,136.08,136.05,0.64114193]
[1768002314144,9.84984107,136.1,136.05,7.34970721]
[1768002314145,0.6591031,136.09,136.05,7.34970721]
[1768002315852,0.6591031,136.09,136.06,0.67487029]
[1768002316149,3.16139361,136.1,136.06,0.67487029]
[1768002316547,0.6591031,136.09,136.06,7.96451763]
[1768002319128,0.8591031,136.1,136.07,0.67487029]
[1768002319334,0.8591031,136.1,136.07,0.61487029]
[1768002319832,0.2,136.1,136.07,2.30229051]
[1768002320038,0.8591031,136.12,136.07,2.30229051]
[1768002320252,0.8591031,136.12,136.07,15.72229051]
[1768002321224,0.8591031,136.12,136.08,7.34861845]
[1768002321429,0.8591031,136.12,136.09,0.67487029]
[1768002327855,0.6591031,136.12,136.09,0.67487029]
[1768002332860,0.6591031,136.13,136.1,0.67487029]
[1768002336254,2.96139361,136.13,136.1,0.67487029]
[1768002337564,0.67395122,136.17,136.12,0.70247714]
[1768002337755,0.67395122,136.15,136.12,0.70247714]
[1768002339985,0.2,136.18,136.14,0.70247714]
[1768002340266,0.2,136.18,136.16,0.70247714]
[1768002341072,0.2,136.18,136.16,3.00476765]
[1768002341448,0.2,136.18,136.16,0.70247714]
[1768002342269,0.2,136.18,136.16,3.00476765]
[1768002344568,0.2,136.18,136.17,2.30229051]
[1768002345981,0.87395122,136.2,136.17,2.30229051]
[1768002346160,0.67395122,136.19,136.17,2.30229051]
[1768002346361,0.67395122,136.19,136.16,2.82349689]
[1768002347561,0.67395122,136.19,136.16,0.52120638]
[1768002347964,0.67395122,136.19,136.16,2.82349689]
[1768002349881,0.67395122,136.19,136.16,0.52120638]
[1768002353291,0.71679679,136.18,136.12,25.71260651]
[1768002353488,0.71679679,136.18,136.12,29.30049218]
[1768002353670,0.71679679,136.17,136.12,11.45555105]
[1768002353870,0.71679679,136.16,136.12,7.86766538]
[1768002355096,0.71679679,136.16,136.12,7.346459]
[1768002355986,0.71679679,136.15,136.1,0.52120638]
[1768002356183,0.71679679,136.14,136.1,7.86836547]
[1768002357097,0.71679679,136.14,136.11,7.34695938]
[1768002360689,0.71679679,136.14,136.1,0.52120638]
[1768002360690,0.71679679,136.14,136.1,7.86854029]
[1768002361177,0.71679679,136.13,136.1,7.86854029]
[1768002361373,0.71679679,136.12,136.08,0.52120638]
[1768002361694,0.71679679,136.12,136.08,7.86945514]
[1768002364990,0.72429773,136.1,136.05,3.58788567]
[1768002365192,0.72429773,136.1,136.05,17.52909205]
[1768002365581,0.72429773,136.1,136.05,13.94120638]
[1768002365777,0.72429773,136.1,136.07,0.52120638]
[1768002368674,11.32429773,136.1,136.07,0.52120638]
[1768002369808,0.72429773,136.09,136.06,7.34940751]
[1768002369981,0.69429774,136.09,136.06,7.34940751]
[1768002370383,0.69429774,136.09,136.06,7.90061388]
[1768002373980,0.66429775,136.09,136.06,7.90061388]
[1768002380401,0.63429776,136.09,136.06,7.90061388]
[1768002382106,0.63429776,136.09,136.04,35.38412437]
[1768002382107,0.63429776,136.09,136.05,7.96126909]
[1768002382292,0.63429776,136.09,136.06,7.34969649]
[1768002383116,0.63429776,136.09,136.05,7.96126653]
[1768002383414,0.63429776,136.09,136.05,0.61120635]
[1768002384815,0.63429776,136.09,136.05,7.9612746]
[1768002386213,21.53568961,136.1,136.06,0.61120635]
[1768002386214,10.6,136.1,136.06,0.61120635]
[1768002386517,10.6,136.1,136.07,0.61120635]
[1768002387000,11.32429773,136.1,136.07,0.61120635]
[1768002387703,11.32429773,136.1,136.07,7.96016446]
[1768002390192,10.6,136.1,136.08,0.61120635]
[1768002390395,0.72429773,136.12,136.08,0.61120635]
[1768002391897,0.72429773,136.12,136.09,7.34807847]
[1768002392919,0.72429773,136.12,136.08,7.95955456]
[1768002395217,0.66485627,136.11,136.08,7.95955456]
[1768002400915,0.66485627,136.11,136.08,7.34834821]
[1768002403204,0.66485627,136.11,136.08,7.95955456]
[1768002411545,0.66485627,136.11,136.07,20.76888683]
[1768002411715,0.6671679,136.1,136.07,20.76888683]
[1768002412737,0.6671679,136.08,136.04,14.03120635]
[1768002412930,0.63716791,136.08,136.05,7.34994643]
[1768002417831,0.6671679,136.1,136.06,0.64120634]
[1768002418042,0.6671679,136.1,136.06,7.99070501]
[1768002419238,0.6671679,136.1,136.05,2.30007268]
[1768002419239,0.6671679,136.11,136.08,0.64120634]
[1768002420951,0.6671679,136.11,136.08,7.98976809]
[1768002423136,0.6671679,136.11,136.07,7.99017288]
[1768002432563,0.6671679,136.11,136.08,0.64120634]
[1768002435349,0.71085187,136.1,136.06,0.64120634]
[1768002435549,3.01092455,136.1,136.06,0.64120634]
[1768002435760,0.71085187,136.11,136.08,7.98974519]
[1768002435955,0.71085187,136.11,136.08,0.64120634]
[1768002437854,0.71085187,136.11,136.07,7.34900123]
[1768002443139,0.71085187,136.11,136.07,7.99020757]
[1768002460678,6.89480321,136.13,136.09,0.64120634]
[1768002460970,0.69643031,136.13,136.09,2.30007268]
[1768002461182,0.69643031,136.13,136.08,41.43995446]
[1768002462773,0.69643031,136.13,136.09,7.9288538]
[1768002464669,0.69643031,136.13,136.1,0.58120634]
[1768002467072,13.53280638,136.18,136.12,0.66155456]
[1768002467278,2.30007268,136.17,136.12,0.66155456]
[1768002468369,2.30007268,136.17,136.12,8.00770469]
[1768002469374,0.69643031,136.16,136.13,0.66155456]
[1768002469576,2.99650299,136.16,136.13,0.66155456]
[1768002470966,0.69643031,136.16,136.13,0.66155456]
[1768002471969,2.97521884,136.17,136.14,0.67373971]
[1768002472280,2.97521884,136.17,136.14,0.61373971]
[1768002472855,0.67514616,136.16,136.13,7.34582311]
[1768002474154,0.67514616,136.16,136.13,8.01956282]
[1768002474873,2.30007268,136.18,136.13,8.01956282]
[1768002474874,0.67514616,136.18,136.14,0.67373971]
[1768002475869,0.67514616,136.18,136.15,8.01857995]
[1768002477368,0.67514616,136.18,136.16,0.67373971]
[1768002477549,0.67514616,136.18,136.15,0.67373971]
[1768002479557,0.62775031,136.2,136.16,0.67373971]
[1768002480466,0.67514616,136.18,136.15,8.01853074]
[1768002482885,0.67514616,136.18,136.13,21.95240513]
[1768002482886,0.71610882,136.16,136.13,8.01933877]
[1768002484860,0.71610882,136.16,136.14,0.65280979]
[1768002485877,0.71610882,136.17,136.14,7.99809576]
[1768002489284,0.71610882,136.17,136.15,0.65280979]
[1768002490681,0.71610882,136.18,136.15,0.65280979]
[1768002491291,0.71610882,136.18,136.14,7.34528597]
[1768002491788,0.71610882,136.18,136.14,7.99809576]
[1768002492487,0.71610882,136.18,136.15,0.65280979]
[1768002494667,0.71610882,136.19,136.16,0.65280979]
[1768002495690,0.71610882,136.19,136.16,7.99701935]
[1768002498477,4.50460275,136.2,136.17,0.65280979]
[1768002498680,4.50460275,136.2,136.17,0.59280979]
[1768002501798,0.71610882,136.19,136.16,0.65280979]
[1768002504590,0.71610882,136.19,136.16,7.99697128]
[1768002504786,0.2,136.2,136.17,0.65280979]
[1768002506400,0.2,136.2,136.17,7.99633571]
[1768002506601,0.2,136.2,136.18,0.65280979]
[1768002508812,0.91610882,136.2,136.18,0.65280979]
[1768002509706,3.58849393,136.22,136.19,0.59280979]
[1768002509707,0.71610882,136.22,136.19,0.59280979]
[1768002510201,0.71610882,136.21,136.19,0.59280979]
[1768002510406,0.71610882,136.21,136.17,25.7025746]
[1768002511189,0.71610882,136.19,136.17,7.34376147]
[1768002514915,0.70035747,136.21,136.18,0.66869325]
[1768002518816,0.70035747,136.23,136.19,0.66869325]
[1768002519827,0.70035747,136.23,136.2,8.01083715]
[1768002520143,0.70035747,136.24,136.21,0.66869325]
[1768002520317,0.70035747,136.24,136.21,0.60869325]
[1768002520514,0.2,136.25,136.21,0.60869325]
[1768002521301,0.90035747,136.25,136.21,0.60869325]
[1768002522304,0.90035747,136.25,136.22,0.66869325]
[1768002524738,0.90035747,136.25,136.23,0.66869325]
[1768002524739,0.2,136.25,136.23,0.66869325]
[1768002524915,0.2,136.25,136.23,4.25718718]
[1768002525243,0.2,136.25,136.23,0.66869325]
[1768002525821,0.2,136.26,136.24,0.66869325]
[1768002528216,19.61652246,136.28,136.24,0.66869325]
[1768002528217,18.81652246,136.28,136.24,0.66869325]
[1768002529548,15.22802853,136.28,136.25,0.65368024]
[1768002529725,15.22802853,136.28,136.25,0.59368024]
[1768002537541,15.22802853,136.28,136.25,0.53368024]
[1768002539629,15.22802853,136.28,136.25,7.87290933]
[1768002541353,15.22802853,136.28,136.25,0.53368024]
[1768002542053,17.52155975,136.28,136.25,0.53368024]
[1768002542255,0.67822955,136.26,136.23,7.99399218]
[1768002542561,0.67822955,136.25,136.22,0.65368024]
[1768002543246,3.00739154,136.26,136.23,0.70130406]
[1768002545634,0.71386032,136.25,136.22,8.04236076]
[1768002545834,0.71386032,136.25,136.22,0.70130406]
[1768002547367,3.00739154,136.26,136.22,0.70130406]
[1768002547547,2.29353122,136.25,136.22,0.70130406]
[1768002547862,3.00739154,136.24,136.21,0.70130406]
[1768002548469,3.00739154,136.23,136.2,0.70130406]
[1768002548761,3.00739154,136.22,136.19,0.70130406]
[1768002548963,0.71386032,136.22,136.19,0.70130406]
[1768002549751,0.71386032,136.22,136.19,8.04388485]
[1768002550568,0.71386032,136.24,136.21,0.70130406]
[1768002550747,3.00739154,136.24,136.21,0.70130406]
[1768002551972,3.00739154,136.24,136.21,8.04288353]
[1768002552467,2.29353122,136.24,136.2,8.04324014]
[1768002552699,0.71386032,136.23,136.2,8.04324014]
[1768002553357,3.00739154,136.24,136.21,0.70130406]
[1768002559886,3.00739154,136.26,136.22,0.70130406]
[1768002560293,3.00739154,136.26,136.23,0.70130406]
[1768002560497,3.00739154,136.26,136.22,7.34068388]
[1768002561590,3.00739154,136.26,136.21,18.35401218]
[1768002562196,0.71386032,136.25,136.21,18.35401218]
[1768002563470,0.71386032,136.25,136.21,25.69561705]
[1768002565394,0.71386032,136.26,136.21,20.6475434]
[1768002567484,10.34587829,136.27,136.21,27.98914827]
[1768002569387,0.71386032,136.26,136.21,27.98914827]
[1768002570805,3.00739154,136.26,136.21,18.35401218]
[1768002571511,0.71386032,136.25,136.21,18.35401218]
[1768002572395,0.71386032,136.24,136.17,14.01859745]
[1768002572730,0.71386032,136.18,136.13,7.34578062]
[1768002572907,3.00739154,136.17,136.13,7.34578062]
[1768002573706,3.00739154,136.17,136.12,18.36532502]
[1768002574010,3.00739154,136.17,136.12,25.71178402]
[1768002574307,3.00739154,136.17,136.13,0.72017654]
[1768002574887,2.29353122,136.21,136.16,0.72017654]
[1768002575285,2.96538574,136.21,136.16,0.72017654]
[1768002579217,2.96538574,136.21,136.17,0.72017654]
[1768002579716,2.96538574,136.23,136.17,0.72017654]
[1768002579918,15.69353122,136.23,136.18,0.72017654]
[1768002580794,2.29353122,136.23,136.19,0.72017654]
[1768002581503,2.29353122,136.22,136.19,0.72017654]
[1768002583606,0.67185452,136.23,136.19,8.06285529]
[1768002583813,2.29353122,136.22,136.19,8.06285529]
[1768002584815,2.96538574,136.23,136.2,0.72017654]
[1768002585517,2.29353122,136.22,136.2,0.72017654]
[1768002585817,2.29353122,136.22,136.19,0.72017654]
[1768002586298,0.67185452,136.23,136.19,0.72017654]
[1768002586499,2.29353122,136.22,136.19,0.72017654]
[1768002587321,2.29353122,136.22,136.19,8.06248914]
[1768002592522,2.29353122,136.22,136.2,0.69976332]
[1768002593722,0.65884999,136.21,136.18,8.04298552]
[1768002593904,2.95238121,136.21,136.18,8.04298552]
[1768002596028,0.65884999,136.21,136.18,8.04298552]
[1768002596913,2.95238121,136.22,136.19,0.69976332]
[1768002598235,10.29320126,136.23,136.19,0.69976332]
[1768002598428,7.99967004,136.23,136.19,0.69976332]
[1768002598627,0.65884999,136.22,136.19,0.69976332]
[1768002598823,0.65884999,136.21,136.18,8.04298552]
[1768002599836,0.65884999,136.2,136.17,7.34355828]
[1768002600614,0.65884999,136.19,136.16,21.44381119]
[1768002601822,0.65884999,136.17,136.14,0.69976332]
[1768002602132,4.21710843,136.17,136.14,8.04487806]
[1768002602520,0.62885,136.17,136.15,7.34483979]
[1768002603025,3.58825843,136.18,136.15,7.34483979]
[1768002603935,4.24105862,136.18,136.15,7.34483979]
[1768002605433,4.24105862,136.17,136.14,8.04500319]
[1768002608124,0.65280019,136.16,136.12,14.07380453]
[1768002608324,3.58825843,136.13,136.12,0.67380453]
[1768002610141,3.58825843,136.13,136.09,7.34807847]
[1768002610640,3.58825843,136.13,136.06,7.34956316]
[1768002610641,4.24105862,136.1,136.06,7.34956316]
[1768002611913,4.24105862,136.1,136.06,7.44709121]
[1768002612131,3.58825843,136.09,136.06,7.44709121]
[1768002612337,4.24105862,136.1,136.06,7.44709121]
[1768002613438,0.65280019,136.09,136.06,7.34956316]
[1768002613956,4.24105862,136.1,136.06,7.44709121]
[1768002615334,0.65280019,136.1,136.06,7.44709121]
[1768002619243,0.65280019,136.1,136.07,0.09752805]
[1768002620337,4.24105862,136.1,136.07,0.09752805]
[1768002625270,4.24105862,136.1,136.06,7.44709121]
[1768002625955,4.24105862,136.1,136.07,0.09752805]
[1768002630546,0.65280019,136.09,136.06,7.34956316]
[1768002635447,0.65280019,136.09,136.06,7.44709121]
[1768002635761,4.28064853,136.1,136.07,0.09752805]
[1768002637059,4.28064853,136.1,136.06,7.44709121]
[1768002641452,4.28064853,136.09,136.06,7.34956316]
[1768002641665,4.25064854,136.09,136.06,7.34956316]
[1768002641865,3.58825843,136.09,136.05,21.06754326]
[1768002643772,0.6923901,136.08,136.05,21.06754326]
[1768002644074,0.66239011,136.08,136.05,21.06754326]
[1768002650974,0.66239011,136.08,136.05,7.64754326]
[1768002652793,0.66239011,136.08,136.05,7.55001521]
[1768002652960,0.66239011,136.08,136.05,7.70754324]
[1768002658164,0.66239011,136.08,136.05,29.67139887]
[1768002658879,0.63239012,136.08,136.05,29.67139887]
[1768002659263,0.63239012,136.08,136.05,26.08314044]
[1768002660391,3.58825843,136.1,136.06,0.18752802]
[1768002660682,2.29986329,136.1,136.06,0.18752802]
[1768002660883,0.71966691,136.09,136.06,0.18752802]
[1768002661083,0.71966691,136.09,136.05,26.11314043]
[1768002675869,0.71966691,136.09,136.06,0.18752802]
[1768002676393,0.71966691,136.09,136.05,26.11314043]
[1768002682196,0.71966691,136.09,136.05,28.41300372]
[1768002683282,3.03413159,136.11,136.06,3.02181803]
[1768002684302,3.03413159,136.11,136.07,7.34915852]
[1768002684598,0.7342683,136.11,136.07,7.34915852]
[1768002684799,2.29986329,136.11,136.07,7.34915852]
[1768002685312,0.69440448,136.1,136.07,7.34915852]
[1768002687701,2.99426777,136.1,136.07,7.34915852]
[1768002687883,0.69440448,136.09,136.07,7.34915852]
[1768002704818,0.67342441,136.1,136.07,0.67169189]
[1768002710119,0.67342441,136.1,136.07,8.02032017]
[1768002715122,2.9732877,136.1,136.07,8.02032017]
[1768002715336,0.71827605,136.09,136.07,8.02032017]
[1768002719731,0.71827605,136.09,136.06,26.44701542]
[1768002720331,0.71827605,136.08,136.05,8.27397739]
[1768002720510,2.98813934,136.08,136.05,8.27397739]
[1768002722730,4.28266848,136.08,136.05,8.27397739]
[1768002723431,0.6707646,136.07,136.05,7.54997164]
[1768002723635,0.6407646,136.07,136.05,0.2]
[1768002723816,3.59439243,136.07,136.05,0.2]
[1768002725042,3.59439243,136.06,136.03,2.92540959]
[1768002725210,3.59439243,136.04,136.0,8.02416807]
[1768002725415,3.59439243,136.03,136.0,8.02416807]
[1768002725617,3.59439243,136.04,136.01,8.02381864]
[1768002725834,6.452776,136.08,136.01,8.02381864]
[1768002725835,3.59439243,136.05,136.01,8.02381864]
[1768002726134,3.59439243,136.04,136.01,8.02381864]
[1768002727928,7.34976613,136.06,135.99,18.48317314]
[1768002727929,3.59439243,136.03,136.0,8.02421007]
[1768002728132,3.59439243,136.04,136.0,8.02421007]
[1768002729141,3.59439243,136.03,136.0,8.02421007]
[1768002729341,3.59439243,136.03,135.99,7.45327639]
[1768002730739,3.59439243,136.03,135.99,0.77153171]
[1768002733114,3.59439243,136.03,135.99,8.12496556]
[1768002734328,3.56439241,136.03,135.99,8.12496556]
[1768002735334,4.29866071,136.03,135.99,8.12496556]
[1768002736646,4.32866073,136.04,136.0,0.67153171]
[1768002738634,4.32866073,136.04,136.0,8.02446164]
[1768002742431,3.59439243,136.03,136.0,8.02446164]
[1768002742630,3.59439243,136.02,135.99,8.12478138]